bitfinex/quotes_BTCUSD_20230103
["timestamp","ask_amount","ask_price","bid_price","bid_amount"]
[1672757177110,9.13e-06,16782.0,16781.0,2.11934176]
[1672757177378,9.13e-06,16782.0,16781.0,2.08450432]
[1672757177379,0.00013072,16782.0,16781.0,2.08450432]
[1672757177663,9.13e-06,16782.0,16781.0,2.08450432]
[1672757177928,0.0157502,16782.0,16781.0,2.08450432]
[1672757178420,0.0157502,16782.0,16781.0,1.51150432]
[1672757178681,0.0157502,16782.0,16781.0,1.38450432]
[1672757178937,0.0157502,16782.0,16781.0,1.51150432]
[1672757179266,0.08506411,16786.0,16782.0,0.01574]
[1672757179444,0.08506411,16786.0,16783.0,0.6135]
[1672757179690,0.02274817,16786.0,16785.0,0.3984]
[1672757179964,0.03848924,16786.0,16785.0,1.98582059]
[1672757180194,0.02870588,16786.0,16785.0,1.98582059]
[1672757180690,0.02870588,16786.0,16785.0,1.7620384]
[1672757180939,0.02870588,16786.0,16785.0,2.4620384]
[1672757181787,0.02870588,16786.0,16785.0,2.5890384]
[1672757182024,0.02870588,16786.0,16785.0,3.01583906]
[1672757182277,0.02870588,16786.0,16785.0,3.15783906]
[1672757182806,0.02870588,16786.0,16785.0,2.4620384]
[1672757183097,0.04357034,16786.0,16785.0,3.20978656]
[1672757183327,0.04357034,16786.0,16785.0,5.2274384]
[1672757183328,2.034e-05,16786.0,16785.0,5.2274384]
[1672757184442,2.034e-05,16786.0,16785.0,5.0854384]
[1672757184689,2.034e-05,16786.0,16785.0,5.2254384]
[1672757184947,2.034e-05,16786.0,16785.0,4.0908384]
[1672757185228,2.034e-05,16786.0,16785.0,4.2308384]
[1672757185495,0.24008036,16786.0,16785.0,4.0946384]
[1672757185791,2.034e-05,16786.0,16785.0,3.1004384]
[1672757186045,2.034e-05,16786.0,16785.0,2.9604384]
[1672757186301,2.034e-05,16786.0,16785.0,4.3924084]
[1672757186563,2.034e-05,16786.0,16785.0,5.13494949]
[1672757186811,2.034e-05,16786.0,16785.0,5.5388673]
[1672757187218,2.034e-05,16786.0,16785.0,5.5473673]
[1672757187435,2.034e-05,16786.0,16785.0,5.4073673]
[1672757187656,2.034e-05,16786.0,16785.0,5.5473673]
[1672757187884,2.034e-05,16786.0,16785.0,5.4073673]
[1672757188121,2.034e-05,16786.0,16785.0,5.5378673]
[1672757188653,6.81e-06,16786.0,16785.0,5.5378673]
[1672757188906,0.01404418,16786.0,16785.0,5.0191084]
[1672757189170,8.36e-06,16786.0,16785.0,5.0191084]
[1672757189421,1.607e-05,16786.0,16785.0,5.0191084]
[1672757190172,1.607e-05,16786.0,16785.0,4.8801084]
[1672757190444,1.607e-05,16786.0,16785.0,5.0191084]
[1672757190689,1.607e-05,16786.0,16785.0,4.8801084]
[1672757190944,1.607e-05,16786.0,16785.0,5.0191084]
[1672757191209,1.607e-05,16786.0,16785.0,5.5638675]
[1672757194821,1.607e-05,16786.0,16785.0,5.0191084]
[1672757195009,1.607e-05,16786.0,16785.0,3.912943]
[1672757196539,1.607e-05,16786.0,16785.0,4.54905567]
[1672757197053,1.607e-05,16786.0,16785.0,4.84693567]
[1672757197303,7.31e-06,16786.0,16785.0,4.84693567]
[1672757197562,0.01040956,16788.0,16786.0,0.01168269]
[1672757197809,0.01040956,16788.0,16787.0,1.0119]
[1672757198071,0.01040956,16788.0,16787.0,3.48646261]
[1672757198316,0.0280578,16788.0,16787.0,3.48646261]
[1672757198826,0.0280578,16788.0,16787.0,4.18646261]
[1672757199086,0.0280578,16788.0,16787.0,4.59191144]
[1672757199900,0.0280578,16788.0,16787.0,4.16274883]
[1672757200118,0.0280578,16788.0,16787.0,4.73225346]
[1672757200377,0.01636656,16788.0,16787.0,4.73225346]
[1672757200653,0.01636656,16788.0,16787.0,5.30885651]
[1672757201680,0.01636656,16788.0,16787.0,5.42304929]
[1672757201929,0.01636656,16788.0,16787.0,5.22384929]
[1672757202703,0.01636656,16788.0,16787.0,5.08384929]
[1672757202965,0.01636656,16788.0,16787.0,4.81840046]
[1672757206031,0.01636656,16788.0,16787.0,4.61944529]
[1672757206536,0.01636656,16788.0,16787.0,3.21404529]
[1672757207101,0.01636656,16788.0,16787.0,3.07404529]
[1672757207348,0.01636656,16788.0,16787.0,3.21404529]
[1672757207610,0.01636656,16788.0,16787.0,3.55653809]
[1672757207855,0.01636656,16788.0,16787.0,3.06394226]
[1672757208348,0.01636656,16788.0,16787.0,3.6126242]
[1672757208598,0.01636656,16788.0,16787.0,3.06394226]
[1672757208903,0.01636656,16788.0,16787.0,2.92394226]
[1672757209096,0.01636656,16788.0,16787.0,3.67683965]
[1672757209856,0.01636656,16788.0,16787.0,2.92394226]
[1672757210103,0.01636656,16788.0,16787.0,3.4875844]
[1672757210594,0.01636656,16788.0,16787.0,2.92394226]
[1672757211099,0.01636656,16788.0,16787.0,3.62742159]
[1672757211345,0.01636656,16788.0,16787.0,2.92394226]
[1672757212100,0.01636656,16788.0,16787.0,3.65014803]
[1672757212341,0.01636656,16788.0,16787.0,3.50814803]
[1672757212596,0.01636656,16788.0,16787.0,3.64814803]
[1672757212843,0.01636656,16788.0,16787.0,3.50814803]
[1672757213085,0.01636656,16788.0,16787.0,3.56964803]
[1672757213330,0.01636656,16788.0,16787.0,3.42764803]
[1672757213585,0.01636656,16788.0,16787.0,3.56764803]
[1672757213839,0.01636656,16788.0,16787.0,3.42764803]
[1672757214087,0.01636656,16788.0,16787.0,3.56964803]
[1672757214343,0.01636656,16788.0,16787.0,3.22715523]
[1672757214839,0.01496656,16788.0,16787.0,3.08515523]
[1672757215107,0.01496656,16788.0,16787.0,3.22715523]
[1672757216409,0.01496656,16788.0,16787.0,2.64294946]
[1672757216639,0.01496656,16788.0,16787.0,2.92026268]
[1672757217643,0.01496656,16788.0,16787.0,2.77826268]
[1672757217901,0.01496656,16788.0,16787.0,2.92026268]
[1672757219692,0.01496656,16788.0,16787.0,3.03836268]
[1672757219924,0.01496656,16788.0,16787.0,3.59751016]
[1672757220698,1.656e-05,16788.0,16787.0,3.03836268]
[1672757221220,1.656e-05,16788.0,16787.0,2.89636268]
[1672757221504,6.57e-06,16788.0,16787.0,3.03836268]
[1672757221715,7.01e-06,16788.0,16787.0,2.89636268]
[1672757221965,1.401e-05,16788.0,16787.0,3.03836268]
[1672757222232,1.401e-05,16788.0,16787.0,3.21421322]
[1672757222470,1.401e-05,16788.0,16787.0,3.64106879]
[1672757222746,1.401e-05,16788.0,16787.0,3.78206879]
[1672757223530,1.401e-05,16788.0,16787.0,4.32586879]
[1672757223767,1.401e-05,16788.0,16787.0,4.18486879]
[1672757224801,1.401e-05,16788.0,16787.0,4.36350961]
[1672757225056,1.401e-05,16788.0,16787.0,4.18486879]
[1672757225399,1.401e-05,16788.0,16787.0,4.42634471]
[1672757225603,1.401e-05,16788.0,16787.0,4.28734471]
[1672757225853,0.24007403,16788.0,16787.0,3.25443149]
[1672757226127,1.401e-05,16788.0,16787.0,3.25443149]
[1672757226915,1.401e-05,16788.0,16787.0,3.39343149]
[1672757227173,1.401e-05,16788.0,16787.0,3.25443149]
[1672757227461,1.401e-05,16788.0,16787.0,3.38242524]
[1672757227721,1.401e-05,16788.0,16787.0,3.65745603]
[1672757228028,1.401e-05,16788.0,16787.0,3.79745603]
[1672757228289,1.401e-05,16788.0,16787.0,3.65745603]
[1672757228800,1.401e-05,16788.0,16787.0,3.44871636]
[1672757229579,1.401e-05,16788.0,16787.0,4.03603505]
[1672757229830,1.401e-05,16788.0,16787.0,4.17603505]
[1672757230123,1.401e-05,16788.0,16787.0,4.03603505]
[1672757230359,1.401e-05,16788.0,16787.0,4.17605505]
[1672757230916,1.401e-05,16788.0,16787.0,4.03605505]
[1672757231223,1.401e-05,16788.0,16787.0,3.46417426]
[1672757231508,1.401e-05,16788.0,16787.0,3.32417426]
[1672757232038,1.401e-05,16788.0,16787.0,3.08777426]
[1672757232803,1.401e-05,16788.0,16787.0,3.22777426]
[1672757233054,1.401e-05,16788.0,16787.0,3.62633996]
[1672757234359,1.401e-05,16788.0,16787.0,3.22786246]
[1672757234877,1.401e-05,16788.0,16787.0,2.64054377]
[1672757235136,1.401e-05,16788.0,16787.0,2.02704377]
[1672757237672,1.401e-05,16788.0,16787.0,2.64054377]
[1672757239806,1.401e-05,16788.0,16787.0,2.02704377]
[1672757241350,1.401e-05,16788.0,16787.0,2.93619193]
[1672757241603,1.401e-05,16788.0,16787.0,3.54969193]
[1672757242619,0.00982432,16788.0,16787.0,3.54969193]
[1672757245205,0.0096728,16788.0,16787.0,3.54969193]
[1672757245456,0.0096728,16788.0,16787.0,2.93619193]
[1672757247812,0.0096728,16788.0,16787.0,3.54969193]
[1672757248591,0.0096728,16788.0,16787.0,2.93619193]
[1672757249321,0.0096728,16788.0,16787.0,2.66724142]
[1672757251633,0.0096728,16788.0,16787.0,1.32704377]
[1672757251885,1.28e-05,16788.0,16787.0,2.64054377]
[1672757252144,0.00982311,16788.0,16787.0,2.64054377]
[1672757252406,0.00596011,16788.0,16787.0,2.94740242]
[1672757252643,0.01576731,16788.0,16787.0,2.94740242]
[1672757254431,0.0158889,16788.0,16787.0,1.90894377]
[1672757254679,0.03770131,16788.0,16787.0,1.90894377]
[1672757254932,0.01576731,16788.0,16787.0,1.90894377]
[1672757255193,0.01576731,16788.0,16787.0,2.53006343]
[1672757256479,0.92286248,16788.0,16787.0,0.84]
[1672757256793,0.68280246,16788.0,16787.0,0.84]
[1672757257343,0.70473646,16788.0,16787.0,0.84]
[1672757257613,0.69492615,16788.0,16787.0,0.703]
[1672757257872,0.70792615,16788.0,16787.0,0.703]
[1672757258140,0.82642615,16788.0,16787.0,0.003]
[1672757258665,1.05075156,16788.0,16787.0,0.003]
[1672757258939,1.05075156,16788.0,16785.0,0.7]
[1672757258940,1.03775156,16788.0,16785.0,0.7]
[1672757259202,0.005957,16786.0,16785.0,1.35872485]
[1672757259709,0.005957,16786.0,16785.0,0.7]
[1672757260243,0.70664901,16786.0,16785.0,0.7]
[1672757260464,0.69264901,16786.0,16785.0,0.7]
[1672757260732,0.019957,16786.0,16785.0,0.7]
[1672757261239,0.62923301,16786.0,16784.0,1.687445]
[1672757261488,0.005957,16785.0,16784.0,1.687445]
[1672757261760,0.005957,16785.0,16784.0,1.81716445]
[1672757262518,0.6346469,16785.0,16784.0,1.2]
[1672757262734,0.6346469,16785.0,16784.0,1.264]
[1672757263022,0.63476849,16785.0,16784.0,1.264]
[1672757264325,0.63476849,16785.0,16784.0,0.564]
[1672757264849,0.63476849,16785.0,16784.0,0.56411056]
[1672757265114,0.63476849,16785.0,16784.0,0.564]
[1672757265386,0.6346469,16785.0,16784.0,0.564]
[1672757265621,0.005957,16785.0,16784.0,0.78222458]
[1672757266131,0.51610864,16785.0,16784.0,0.364]
[1672757266413,0.75616866,16785.0,16784.0,0.064]
[1672757266741,0.52482607,16785.0,16782.0,2.66224]
[1672757266921,0.52482607,16785.0,16781.0,0.51755436]
[1672757266922,0.89618609,16785.0,16781.0,0.51755436]
[1672757267189,0.35856002,16784.0,16781.0,0.51755436]
[1672757267436,0.00595913,16782.0,16781.0,0.00811821]
[1672757267960,0.01467656,16782.0,16781.0,0.70811821]
[1672757268469,0.01467656,16782.0,16781.0,0.00811821]
[1672757268725,0.01567656,16782.0,16781.0,0.14511821]
[1672757268976,0.01467656,16782.0,16781.0,0.00811821]
[1672757269292,0.01567656,16782.0,16781.0,0.14711821]
[1672757269537,0.01467656,16782.0,16781.0,0.00811821]
[1672757269756,0.01467656,16782.0,16781.0,0.07211821]
[1672757270052,0.07697599,16782.0,16781.0,0.07211821]
[1672757270597,0.6577611,16782.0,16781.0,0.07211821]
[1672757271077,0.67360776,16782.0,16781.0,0.07211821]
[1672757271330,0.67360776,16782.0,16781.0,0.00811821]
[1672757271797,0.67360776,16782.0,16781.0,0.01611821]
[1672757271798,0.68660776,16782.0,16781.0,0.01611821]
[1672757272316,0.67360776,16782.0,16781.0,0.00811821]
[1672757272563,0.68660776,16782.0,16781.0,0.01111821]
[1672757273329,8.18660776,16782.0,16781.0,0.01111821]
[1672757273579,8.20854176,16782.0,16781.0,0.01111821]
[1672757273836,8.18660776,16782.0,16781.0,0.01111821]
[1672757274089,8.20854176,16782.0,16781.0,0.01111821]
[1672757274391,0.68660776,16782.0,16781.0,0.01111821]
[1672757274620,0.70842017,16782.0,16781.0,0.08283237]
[1672757274879,8.18648617,16782.0,16781.0,0.01111821]
[1672757275095,8.20842017,16782.0,16781.0,0.01111821]
[1672757275395,8.17348617,16782.0,16781.0,0.00811821]
[1672757275639,8.20842017,16782.0,16781.0,0.01111821]
[1672757276190,8.17348617,16782.0,16781.0,0.00811821]
[1672757276437,0.70842017,16782.0,16781.0,0.01111821]
[1672757276697,0.68648617,16782.0,16781.0,0.12809744]
[1672757276973,0.70842017,16782.0,16781.0,0.12800417]
[1672757277192,0.68648617,16782.0,16781.0,0.12800417]
[1672757277446,0.70842017,16782.0,16781.0,0.12800417]
[1672757277699,0.69542017,16782.0,16781.0,0.00802494]
[1672757277952,0.69542017,16782.0,16781.0,0.01102494]
[1672757277953,0.70842017,16782.0,16781.0,0.01102494]
[1672757278205,0.70854176,16782.0,16781.0,0.01102494]
[1672757278453,0.70842017,16782.0,16781.0,0.01102494]
[1672757279213,0.70854176,16782.0,16781.0,0.01102494]
[1672757279677,0.68660776,16782.0,16781.0,0.01102494]
[1672757280475,0.67789033,16782.0,16781.0,0.01102494]
[1672757280755,0.66476874,16782.0,16781.0,0.123361]
[1672757280985,0.67776874,16782.0,16781.0,0.12625042]
[1672757281233,0.66476874,16782.0,16781.0,0.00802494]
[1672757281492,0.67776874,16782.0,16781.0,0.01102494]
[1672757281736,0.66476874,16782.0,16781.0,0.00802494]
[1672757281987,0.67789033,16782.0,16781.0,0.01102494]
[1672757282231,0.66489033,16782.0,16781.0,0.00802494]
[1672757282480,0.67789033,16782.0,16781.0,0.01102494]
[1672757282732,0.67776874,16782.0,16781.0,0.01102494]
[1672757283492,0.66476874,16782.0,16781.0,0.00802494]
[1672757283745,0.67776874,16782.0,16781.0,0.01102494]
[1672757283998,0.66489033,16782.0,16781.0,0.00802494]
[1672757284257,0.67789033,16782.0,16781.0,0.01102494]
[1672757284512,0.66489033,16782.0,16781.0,0.00802494]
[1672757284774,0.67789033,16782.0,16781.0,0.01102494]
[1672757285039,0.66489033,16782.0,16781.0,0.00802494]
[1672757285310,0.67789033,16782.0,16781.0,0.01102494]
[1672757285577,0.99155218,16782.0,16781.0,0.01102494]
[1672757285869,0.92506315,16782.0,16781.0,0.01102494]
[1672757288647,0.92494156,16782.0,16781.0,0.01102494]
[1672757289389,0.92506315,16782.0,16781.0,0.01102494]
[1672757290958,0.92506315,16782.0,16781.0,0.00602494]
[1672757294013,0.94699715,16782.0,16781.0,0.00602494]
[1672757294299,1.0403694,16782.0,16781.0,0.00602494]
[1672757294852,0.92506315,16782.0,16781.0,0.00602494]
[1672757296952,0.55707752,16781.0,16779.0,1.71313525]
[1672757297225,0.55707752,16781.0,16779.0,1.23911404]
[1672757297517,0.00595913,16780.0,16779.0,1.23911404]
[1672757299110,0.708127,16780.0,16779.0,1.23911404]
[1672757299358,0.708127,16780.0,16779.0,1.29711404]
[1672757299629,0.7789397,16780.0,16779.0,0.18401821]
[1672757299886,0.77042643,16780.0,16779.0,0.06611821]
[1672757300147,1.01759925,16780.0,16779.0,0.00811821]
[1672757301201,1.01772084,16780.0,16779.0,0.00811821]
[1672757301746,1.13549292,16780.0,16779.0,0.01211821]
[1672757302001,1.05565484,16780.0,16779.0,0.01211821]
[1672757302256,1.03372084,16780.0,16779.0,0.01211821]
[1672757303256,1.05565484,16780.0,16779.0,0.01211821]
[1672757303518,0.33155297,16780.0,16779.0,0.01211821]
[1672757303790,0.96681666,16780.0,16779.0,0.01211821]
[1672757304052,0.93366136,16780.0,16779.0,0.01211821]
[1672757304546,0.91172736,16780.0,16779.0,0.01211821]
[1672757305082,0.93366136,16780.0,16779.0,0.01211821]
[1672757306123,0.91172736,16780.0,16779.0,0.01211821]
[1672757306387,1.25380212,16780.0,16779.0,0.01211821]
[1672757306664,1.37918233,16780.0,16779.0,0.01211821]
[1672757308769,1.25368053,16780.0,16779.0,0.01317584]
[1672757309034,1.25368053,16780.0,16778.0,0.00457825]
[1672757309035,0.50418292,16779.0,16778.0,0.00457825]
[1672757309309,0.51014205,16779.0,16778.0,0.00457825]
[1672757309601,0.51026364,16779.0,16778.0,0.00445825]
[1672757309868,0.51014205,16779.0,16778.0,0.00445825]
[1672757310366,0.53114205,16779.0,16778.0,0.00445825]
[1672757310658,0.53126364,16779.0,16778.0,0.00445825]
[1672757311440,0.51026364,16779.0,16778.0,0.00445825]
[1672757312252,0.59223723,16779.0,16778.0,0.00445825]
[1672757312475,1.11951122,16779.0,16778.0,0.01245825]
[1672757312984,0.75743646,16779.0,16778.0,0.00445825]
[1672757313250,0.77743646,16779.0,16778.0,0.01245825]
[1672757315026,0.79937046,16779.0,16778.0,0.01245825]
[1672757315286,0.88553745,16779.0,16778.0,0.01245825]
[1672757315828,0.38135453,16779.0,16778.0,0.01245825]
[1672757316074,0.98885639,16779.0,16778.0,0.01245825]
[1672757316332,0.63967492,16779.0,16778.0,0.01245825]
[1672757316584,1.26810452,16779.0,16778.0,0.01245825]
[1672757316849,8.37973494,16779.0,16776.0,0.0077576]
[1672757317132,0.60040227,16778.0,16776.0,0.0077576]
[1672757317364,0.02789313,16777.0,16776.0,0.0077576]
[1672757317619,0.27506595,16777.0,16776.0,0.0075776]
[1672757318384,0.25313195,16777.0,16776.0,0.0075776]
[1672757318658,0.27506595,16777.0,16776.0,0.0075776]
[1672757318908,0.30406595,16777.0,16776.0,0.0075776]
[1672757319428,0.92762079,16777.0,16776.0,0.0075776]
[1672757319686,0.90568679,16777.0,16776.0,0.0075776]
[1672757319889,0.89862079,16777.0,16776.0,0.0075776]
[1672757320406,0.90587721,16777.0,16776.0,0.0075776]
[1672757320670,0.96327752,16777.0,16776.0,0.0155776]
[1672757320932,1.03828277,16777.0,16776.0,0.0155776]
[1672757321181,0.96339911,16777.0,16774.0,1.39934994]
[1672757321430,0.55797029,16777.0,16774.0,1.39934994]
[1672757321692,0.00595913,16775.0,16774.0,1.39934994]
[1672757321945,0.00608072,16775.0,16774.0,1.39922994]
[1672757322199,0.01454703,16775.0,16774.0,1.39916994]
[1672757322458,0.27654105,16775.0,16774.0,1.39916994]
[1672757322709,0.01454703,16775.0,16774.0,1.39916994]
[1672757322958,0.03648103,16775.0,16774.0,1.39916994]
[1672757323204,7.53648103,16775.0,16774.0,1.39916994]
[1672757323717,7.53648103,16775.0,16773.0,0.00937079]
[1672757323956,7.51454703,16775.0,16773.0,0.00937079]
[1672757324239,0.02789313,16774.0,16773.0,0.00937079]
[1672757324531,0.66133087,16774.0,16773.0,0.00937079]
[1672757324842,0.64786318,16774.0,16773.0,0.00937079]
[1672757325033,0.66979718,16774.0,16773.0,0.00937079]
[1672757325310,0.73459566,16774.0,16773.0,0.00937079]
[1672757325566,0.74028866,16774.0,16773.0,0.00937079]
[1672757326112,0.27506595,16774.0,16773.0,0.01737079]
[1672757326344,0.63661158,16774.0,16773.0,0.00937079]
[1672757326616,0.63661158,16774.0,16773.0,0.62382485]
[1672757326617,0.06289313,16774.0,16773.0,0.62382485]
[1672757326866,0.04095913,16774.0,16773.0,0.62382485]
[1672757327145,0.02789313,16774.0,16773.0,0.61682485]
[1672757327634,0.06189313,16774.0,16773.0,0.61682485]
[1672757327889,0.02789313,16774.0,16773.0,0.00937079]
[1672757328162,0.00595913,16774.0,16773.0,0.00937079]
[1672757328430,0.02789313,16774.0,16773.0,0.00937079]
[1672757328705,0.02789313,16774.0,16773.0,0.63753678]
[1672757328706,0.00595913,16774.0,16773.0,0.63753678]
[1672757328913,0.56115693,16774.0,16773.0,0.13487079]
[1672757329173,0.52615693,16774.0,16773.0,0.12787079]
[1672757329429,0.56027852,16774.0,16773.0,0.13587079]
[1672757329675,0.52627852,16774.0,16773.0,0.12787079]
[1672757329922,0.56115693,16774.0,16773.0,0.13487079]
[1672757330444,0.56127852,16774.0,16773.0,0.13487079]
[1672757330708,0.58321252,16774.0,16773.0,0.13487079]
[1672757331280,0.56127852,16774.0,16773.0,0.13487079]
[1672757331494,0.58321252,16774.0,16773.0,0.13487079]
[1672757331751,0.56115693,16774.0,16773.0,0.10487079]
[1672757331999,0.56127852,16774.0,16773.0,0.10487079]
[1672757332275,0.04095913,16774.0,16773.0,0.32237483]
[1672757332537,0.04095913,16774.0,16773.0,0.10487079]
[1672757332768,0.04095913,16774.0,16773.0,0.73376819]
[1672757333021,0.10325856,16774.0,16773.0,0.73376819]
[1672757333529,0.10338015,16774.0,16773.0,0.73376819]
[1672757333779,0.10325856,16774.0,16773.0,0.73376819]
[1672757334311,0.10325856,16774.0,16773.0,0.94925724]
[1672757334523,0.10338015,16774.0,16773.0,0.94925724]
[1672757334771,0.10325856,16774.0,16773.0,0.73376819]
[1672757335789,0.10338015,16774.0,16773.0,0.73376819]
[1672757336311,0.12531415,16774.0,16773.0,0.10487079]
[1672757336566,0.12531415,16774.0,16773.0,0.007]
[1672757336567,0.37399088,16774.0,16773.0,0.007]
[1672757336826,0.37399088,16774.0,16771.0,0.00887629]
[1672757336827,0.17255482,16774.0,16771.0,0.00887629]
[1672757337101,0.63785366,16774.0,16771.0,0.00887629]
[1672757337373,0.00595913,16772.0,16770.0,0.01108543]
[1672757337676,0.24018161,16771.0,16770.0,0.01108543]
[1672757337893,0.64244756,16771.0,16769.0,0.00821352]
[1672757338163,0.96751989,16771.0,16769.0,0.00821352]
[1672757338413,1.28417826,16770.0,16769.0,0.00821352]
[1672757338673,7.28417826,16770.0,16769.0,0.00821352]
[1672757338921,0.88458053,16770.0,16769.0,0.00821352]
[1672757339171,19.28417826,16770.0,16769.0,0.00821352]
[1672757339684,15.29267826,16770.0,16767.0,0.01208065]
[1672757339936,0.00911231,16769.0,16767.0,0.01208065]
[1672757340189,0.02789313,16768.0,16767.0,0.01208065]
[1672757340447,0.03639313,16768.0,16767.0,0.01208065]
[1672757340721,0.64590276,16768.0,16765.0,0.0090945]
[1672757340979,0.86402878,16768.0,16765.0,0.0090945]
[1672757341247,0.00595913,16766.0,16765.0,0.0090945]
[1672757341537,0.00595913,16766.0,16765.0,0.6599217]
[1672757341760,0.00595913,16766.0,16765.0,0.1268945]
[1672757342006,0.00595913,16766.0,16765.0,0.8374455]
[1672757342757,0.5567944,16766.0,16765.0,0.1268945]
[1672757343014,0.5567944,16766.0,16765.0,0.0090945]
[1672757343015,0.63440784,16766.0,16765.0,0.0090945]
[1672757343270,0.57884999,16766.0,16765.0,0.0090945]
[1672757343518,0.5787284,16766.0,16765.0,0.0090945]
[1672757344304,0.57884999,16766.0,16765.0,0.0090945]
[1672757345083,0.04701472,16766.0,16765.0,0.0090945]
[1672757345601,0.66483534,16766.0,16765.0,0.0090945]
[1672757345869,0.65633534,16766.0,16765.0,0.0090945]
[1672757346114,1.65633534,16766.0,16765.0,0.0090945]
[1672757346389,6.65633534,16766.0,16765.0,0.0090945]
[1672757346638,0.65633534,16766.0,16765.0,0.0090945]
[1672757346873,0.66824223,16766.0,16765.0,0.0090945]
[1672757347143,2.66824223,16766.0,16765.0,0.0090945]
[1672757347408,0.66812064,16766.0,16765.0,0.0090945]
[1672757348161,0.64618664,16766.0,16765.0,0.0090945]
[1672757348414,0.79503873,16766.0,16765.0,0.0090945]
[1672757348666,0.73042007,16766.0,16765.0,0.0090945]
[1672757349951,0.73042007,16766.0,16765.0,0.1277945]
[1672757350707,0.73042007,16766.0,16765.0,0.0090945]
[1672757351478,0.73054166,16766.0,16765.0,0.0090945]
[1672757351758,0.80359583,16766.0,16765.0,0.0090945]
[1672757352269,0.75519168,16766.0,16765.0,0.0090945]
[1672757352784,0.19427521,16766.0,16764.0,0.00996616]
[1672757353051,0.63578897,16765.0,16764.0,0.00996616]
[1672757353341,0.6636821,16765.0,16764.0,0.00996616]
[1672757354102,0.6636821,16765.0,16764.0,0.01196616]
[1672757354392,0.6636821,16765.0,16764.0,0.00996616]
[1672757354622,0.6636821,16765.0,16764.0,0.01796616]
[1672757354882,0.6766821,16765.0,16764.0,0.01796616]
[1672757356700,0.04089313,16765.0,16764.0,0.59283369]
[1672757357029,0.01895913,16765.0,16764.0,0.71019445]
[1672757357236,0.01895913,16765.0,16764.0,0.82973369]
[1672757357492,0.01895913,16765.0,16764.0,0.2369]
[1672757358008,0.71416507,16765.0,16764.0,0.1182]
[1672757358270,0.01895913,16765.0,16764.0,0.1182]
[1672757359012,0.01895913,16765.0,16764.0,0.78339742]
[1672757359544,0.01895913,16765.0,16764.0,0.1182]
[1672757359798,0.68344246,16765.0,16764.0,0.1182]
[1672757360551,0.01895913,16765.0,16764.0,0.1182]
[1672757360791,0.01895913,16765.0,16764.0,0.6889896]
[1672757361030,0.01895913,16765.0,16764.0,0.1182]
[1672757361373,0.62080867,16765.0,16764.0,0.1182]
[1672757362108,0.71224417,16765.0,16764.0,0.1182]
[1672757362362,0.71224417,16765.0,16763.0,0.00998435]
[1672757362363,0.71224417,16765.0,16763.0,0.12868435]
[1672757362625,0.08858222,16765.0,16763.0,0.00998435]
[1672757362888,0.60276686,16764.0,16763.0,0.00998435]
[1672757363892,0.66506629,16764.0,16763.0,0.00998435]
[1672757364932,0.68306629,16764.0,16763.0,0.01098435]
[1672757365191,0.68306629,16764.0,16761.0,1.63600637]
[1672757365450,0.55061622,16763.0,16761.0,2.09405359]
[1672757365724,0.021934,16762.0,16761.0,1.51710637]
[1672757365954,0.00595913,16762.0,16761.0,2.33185359]
[1672757366747,0.00595913,16762.0,16761.0,1.73615365]
[1672757367268,0.00595913,16762.0,16761.0,2.34965365]
[1672757367531,0.00595913,16762.0,16761.0,1.73615365]
[1672757367790,0.02095913,16762.0,16761.0,1.73615365]
[1672757368303,0.02095913,16762.0,16761.0,2.31958907]
[1672757368560,0.02095913,16762.0,16761.0,2.93308907]
[1672757368800,0.02095913,16762.0,16761.0,2.31958907]
[1672757369809,0.02095913,16762.0,16761.0,1.04030643]
[1672757369810,0.550837,16762.0,16761.0,1.04030643]
[1672757370396,0.550837,16762.0,16761.0,0.1189]
[1672757370397,0.26114074,16762.0,16761.0,0.1189]
[1672757370652,0.2919201,16762.0,16759.0,0.01325887]
[1672757370946,0.24006002,16761.0,16759.0,0.01325887]
[1672757371199,0.02801472,16760.0,16759.0,0.01325887]
[1672757371444,0.02789313,16760.0,16759.0,0.01325887]
[1672757371697,0.03673849,16760.0,16759.0,0.01325887]
[1672757371954,0.02789313,16760.0,16757.0,0.5]
[1672757372216,0.00012159,16759.0,16757.0,0.6189]
[1672757372464,0.02789313,16758.0,16757.0,1.42461499]
[1672757372719,0.02789313,16758.0,16757.0,0.6189]
[1672757372976,0.00595913,16758.0,16757.0,0.6189]
[1672757373221,0.02291672,16758.0,16757.0,0.6189]
[1672757373439,0.62260025,16758.0,16757.0,0.6189]
[1672757373741,0.63132402,16758.0,16757.0,0.6189]
[1672757373994,0.63931466,16758.0,16757.0,0.6189]
[1672757374250,0.64047866,16758.0,16757.0,0.6189]
[1672757374501,0.65731466,16758.0,16757.0,0.6189]
[1672757374784,0.26401915,16758.0,16757.0,0.1189]
[1672757375094,0.53469875,16758.0,16756.0,1.3547]
[1672757375308,0.016836,16757.0,16756.0,1.3547]
[1672757375567,0.00595913,16757.0,16756.0,1.3547]
[1672757375816,0.59061863,16757.0,16756.0,1.3547]
[1672757376377,0.65186503,16757.0,16756.0,1.3547]
[1672757376602,0.66870103,16757.0,16756.0,1.3547]
[1672757377104,0.66882262,16757.0,16756.0,1.3547]
[1672757377358,0.62057622,16757.0,16756.0,1.3547]
[1672757377861,0.62942158,16757.0,16755.0,0.63402512]
[1672757378118,0.00595913,16756.0,16755.0,0.63402512]
[1672757378392,0.00595913,16756.0,16755.0,0.51512512]
[1672757378673,0.56591559,16756.0,16755.0,0.51512512]
[1672757378945,0.54907959,16756.0,16755.0,0.51512512]
[1672757379177,0.62821502,16756.0,16755.0,0.51512512]
[1672757379405,0.61137902,16756.0,16755.0,0.51512512]
[1672757379708,0.64121502,16756.0,16755.0,0.51512512]
[1672757379968,0.64121502,16756.0,16755.0,0.94733409]
[1672757379969,0.08125856,16756.0,16755.0,0.94733409]
[1672757380292,0.08125856,16756.0,16755.0,1.24857212]
[1672757380494,0.65373912,16756.0,16755.0,0.63402512]
[1672757381523,0.08125856,16756.0,16755.0,0.63402512]
[1672757382357,0.08125856,16756.0,16755.0,0.62402512]
[1672757382641,0.08125856,16756.0,16755.0,1.14161181]
[1672757382937,0.01895913,16756.0,16755.0,1.14161181]
[1672757383144,0.01895913,16756.0,16755.0,0.00512512]
[1672757383145,0.92470775,16756.0,16755.0,0.00512512]
[1672757383419,0.70148373,16756.0,16755.0,0.00512512]
[1672757384168,0.68848373,16756.0,16755.0,0.00512512]
[1672757384422,0.75048373,16756.0,16755.0,0.00812512]
[1672757384676,0.73364773,16756.0,16755.0,0.00812512]
[1672757384924,0.75048373,16756.0,16755.0,0.00812512]
[1672757385182,0.73364773,16756.0,16755.0,0.00812512]
[1672757385437,0.75048373,16756.0,16755.0,0.00812512]
[1672757385692,0.73364773,16756.0,16755.0,0.00812512]
[1672757385942,0.73352614,16756.0,16755.0,0.00812512]
[1672757386746,0.13025856,16756.0,16755.0,1.48365361]
[1672757386998,0.13025856,16756.0,16755.0,1.25987142]
[1672757387532,0.06825856,16756.0,16755.0,1.25687142]
[1672757388075,0.07425856,16756.0,16755.0,1.28087142]
[1672757388300,0.09109456,16756.0,16755.0,1.28087142]
[1672757388560,0.09109456,16756.0,16755.0,0.64792512]
[1672757388561,0.15490374,16756.0,16755.0,0.64792512]